bitfinex/quotes_ETHUSD_20240710
["timestamp","ask_amount","ask_price","bid_price","bid_amount"]
[1720604232356,7.18339177,3085.6,3084.8,0.55]
[1720604233154,7.18339177,3085.6,3084.7,3.31464471]
[1720604233155,6.24103,3085.5,3084.7,0.84514471]
[1720604233318,6.95936918,3085.5,3084.6,0.36662411]
[1720604233520,6.95936918,3085.5,3084.7,0.55]
[1720604234321,6.95936918,3085.5,3084.6,0.55]
[1720604234523,6.95936918,3085.5,3084.6,1.71803087]
[1720604234762,6.24103,3085.5,3084.6,1.71803087]
[1720604235532,3.24107,3085.4,3084.6,1.71803087]
[1720604237371,4.72971177,3085.3,3084.6,0.55]
[1720604238786,4.72991177,3085.1,3084.5,7.47]
[1720604239078,3.24107,3085.4,3084.6,0.55]
[1720604239271,3.0,3085.5,3084.7,2.49091978]
[1720604239426,3.0,3085.6,3084.8,0.61481981]
[1720604239629,2.454,3086.0,3085.0,2.3415]
[1720604239942,4.72884177,3086.2,3085.1,0.61481115]
[1720604240274,4.72884177,3086.2,3085.2,0.29563112]
[1720604240459,1.48852177,3086.2,3085.3,0.61480971]
[1720604241636,4.48852177,3086.2,3085.3,0.61480971]
[1720604243184,1.48852177,3086.0,3085.3,2.03631108]
[1720604243332,3.94252177,3086.0,3085.3,0.55]
[1720604243525,3.94252177,3086.0,3085.2,0.55]
[1720604243776,7.18297177,3086.0,3085.2,0.55]
[1720604244681,4.48852177,3086.2,3085.3,2.50631123]
[1720604244867,4.48852177,3086.2,3085.4,0.55]
[1720604245180,4.48852177,3086.2,3085.5,0.06480744]
[1720604248158,4.48852177,3086.2,3085.4,0.55]
[1720604248357,5.50678595,3086.2,3085.4,0.55]
[1720604248544,5.50678595,3086.2,3085.4,0.61480746]
[1720604248944,8.74703595,3086.2,3085.4,0.61480746]
[1720604249254,7.72877177,3086.2,3085.4,0.61480746]
[1720604250756,3.0,3086.2,3085.4,0.61480746]
[1720604250981,5.454,3086.3,3085.4,0.61480746]
[1720604251567,8.69414,3086.3,3085.4,0.61480746]
[1720604251815,8.69414,3086.3,3085.4,0.6148056]
[1720604252103,8.69414,3086.3,3085.4,1.28337156]
[1720604253457,8.69414,3086.3,3085.5,0.06480561]
[1720604254006,3.0,3086.3,3085.7,2.2742]
[1720604254207,6.20206822,3086.8,3085.8,0.61479992]
[1720604254208,3.0,3086.7,3085.8,0.61479992]
[1720604254504,3.94252177,3086.8,3085.8,0.89721992]
[1720604254858,3.23955,3086.9,3085.8,4.13784992]
[1720604255187,3.23955,3086.9,3085.9,2.68798499]
[1720604255360,4.72785177,3087.1,3086.0,0.61479423]
[1720604256197,3.0,3087.0,3086.0,0.61479423]
[1720604256403,3.0,3087.0,3086.0,0.55]
[1720604256560,3.0,3087.0,3086.1,0.6478495]
[1720604256768,3.0,3087.0,3086.2,0.55]
[1720604257665,3.0,3087.0,3086.3,0.06478968]
[1720604257988,3.0,3087.0,3086.4,2.8749]
[1720604258181,4.48852177,3087.1,3086.5,0.06478797]
[1720604258484,4.48852177,3087.1,3086.6,0.2939688]
[1720604261335,4.48852177,3087.1,3086.6,0.35875667]
[1720604263701,4.48852177,3087.1,3086.6,0.2939688]
[1720604264042,4.48852177,3087.1,3086.4,2.8749]
[1720604264814,4.48852177,3087.1,3086.4,2.93968803]
[1720604268257,3.0,3087.1,3086.4,2.93968803]
[1720604268468,1.48852177,3087.2,3086.4,2.8749]
[1720604268637,3.0,3087.3,3086.5,1.03449]
[1720604268825,1.48852177,3087.4,3086.6,0.55]
[1720604270763,4.72750177,3087.4,3086.6,0.55]
[1720604270955,3.0,3087.3,3086.6,0.55]
[1720604271766,4.72771177,3087.2,3086.6,0.940939]
[1720604271985,3.0,3087.1,3086.5,1.03449]
[1720604272472,3.2396,3086.8,3086.3,7.47]
[1720604272627,3.23982,3086.6,3086.3,7.47]
[1720604275603,1.48852177,3086.7,3086.3,7.47]
[1720604275807,3.0,3086.7,3086.3,7.47]
[1720604277009,3.0,3086.7,3085.9,19.63]
[1720604277218,3.0,3086.7,3086.0,2.513]
[1720604278890,7.72823177,3086.7,3086.0,2.513]
[1720604281133,3.0,3086.7,3086.1,2.2507]
[1720604281296,7.72791177,3087.0,3086.2,0.55]
[1720604281640,2.4536,3087.3,3086.2,0.55]
[1720604281641,3.23912,3087.3,3086.4,2.3788]
[1720604281804,3.23912,3087.3,3086.5,0.61478651]
[1720604282010,3.23912,3087.3,3086.5,0.91414516]
[1720604282800,3.0,3087.2,3086.5,0.91414516]
[1720604284140,7.72772177,3087.2,3086.5,0.84935865]
[1720604284444,4.48852177,3087.2,3086.5,0.29935865]
[1720604284614,3.23973,3086.7,3086.3,7.47]
[1720604286142,6.47953,3086.7,3086.3,7.47]
[1720604287618,3.23983,3086.6,3086.3,7.47]
[1720604288714,3.23983,3086.6,3086.0,1.963]
[1720604288919,3.23983,3086.6,3086.1,1.6509]
[1720604289222,3.23983,3086.6,3085.9,9.856]
[1720604289453,3.23983,3086.6,3086.0,0.55]
[1720604292939,3.2401,3086.4,3085.9,7.47]
[1720604293214,3.2401,3086.4,3085.6,9.7474]
[1720604293337,3.2401,3086.4,3085.7,1.99374]
[1720604295937,7.12243177,3086.5,3085.7,1.99374]
[1720604296137,3.24003,3086.4,3085.7,1.99374]
[1720604299090,3.24019,3086.3,3085.7,1.99374]
[1720604299238,3.24019,3086.3,3085.7,1.44374]
[1720604299470,3.24019,3086.3,3085.8,0.891374]
[1720604300579,3.24023,3086.2,3085.8,0.891374]
[1720604300973,3.24034,3086.1,3085.7,1.44374]
[1720604301868,3.24034,3086.1,3085.4,2.42408742]
[1720604302194,3.24008,3086.4,3085.5,2.3053]
[1720604302396,3.0,3086.4,3085.6,0.53774193]
[1720604302557,3.23986,3086.6,3085.7,0.0647993]
[1720604302994,3.23986,3086.6,3085.6,0.47293874]
[1720604302995,3.0,3086.5,3085.6,0.47293874]
[1720604303146,5.59803,3086.3,3085.7,0.28430362]
[1720604303351,5.59803,3086.3,3085.6,0.47293874]
[1720604303583,5.59803,3086.3,3085.7,0.55]
[1720604304106,3.2403,3086.2,3085.5,2.3053]
[1720604304385,1.48852177,3086.1,3085.4,2.42408742]
[1720604304570,3.24068,3085.8,3085.4,2.42408742]
[1720604304773,5.66478,3085.8,3085.4,2.42408742]
[1720604305153,3.24087,3085.6,3085.4,2.42408742]
[1720604305381,3.24104,3085.5,3085.0,10.72]
[1720604306100,3.24108,3085.4,3085.0,10.72]
[1720604306263,3.24119,3085.3,3085.0,7.47]
[1720604307477,3.24138,3085.2,3085.0,7.47]
[1720604307693,3.24138,3085.1,3085.0,7.47]
[1720604308055,1.48852177,3085.2,3085.0,7.47]
[1720604308245,4.72934177,3085.7,3085.1,0.747]
[1720604308446,3.24096,3085.5,3085.0,7.47]
[1720604308679,3.0,3085.4,3085.0,7.47]
[1720604309452,3.0,3085.5,3084.6,19.63]
[1720604309662,3.0,3085.5,3084.7,2.00474]
[1720604310781,6.24096,3085.5,3084.7,2.00474]
[1720604311707,6.24096,3085.5,3084.8,0.947474]
[1720604311869,6.24096,3085.5,3084.8,1.01229549]
[1720604312316,3.85172177,3086.1,3084.9,2.3571]
[1720604312458,4.72868177,3086.3,3085.1,3.24136]
[1720604312664,1.48852177,3086.5,3085.6,2.2768]
[1720604313008,1.48852177,3086.5,3085.7,1.08488735]
[1720604313322,1.48852177,3086.5,3085.8,0.06479862]
[1720604313460,3.23984,3086.6,3085.9,0.55]
[1720604314196,7.06689177,3086.7,3085.7,0.47008874]
[1720604314197,6.23993,3086.5,3085.8,0.55]
[1720604316013,6.23993,3086.5,3085.8,0.61479865]
[1720604317901,6.23993,3086.5,3085.8,0.55]
[1720604319815,3.24003,3086.4,3085.8,0.55]
[1720604320315,3.24033,3086.1,3085.6,7.47]
[1720604320698,3.24058,3085.9,3085.6,7.47]
[1720604320891,3.24067,3085.8,3085.6,7.47]
[1720604321091,3.24076,3085.7,3085.2,15.4]
[1720604321290,6.24076,3085.7,3085.2,15.4]
[1720604321493,6.24076,3085.7,3085.2,18.04569396]
[1720604321700,6.24076,3085.7,3085.2,5.88569396]
[1720604322703,6.24076,3085.7,3085.2,3.24]
[1720604328278,9.48161,3085.7,3085.2,3.24]
[1720604328979,3.24087,3085.6,3085.2,3.24]
[1720604329182,3.24098,3085.5,3085.2,3.24]
[1720604329389,3.24109,3085.4,3085.2,3.24]
[1720604329595,3.24109,3085.4,3085.1,7.47]
[1720604329797,5.52538,3085.5,3085.1,7.47]
[1720604330612,3.24098,3085.5,3085.1,7.47]
[1720604333329,3.24098,3085.5,3084.7,7.47]
[1720604333506,3.24098,3085.5,3084.9,1.3917474]
[1720604333821,3.24107,3085.4,3084.9,1.3917474]
[1720604333990,3.24107,3085.4,3084.9,0.55]
[1720604339373,3.0,3085.3,3084.7,7.47]
[1720604340532,3.24128,3085.2,3084.7,7.47]
[1720604340839,1.023,3085.1,3084.7,7.47]
[1720604341166,1.023,3085.1,3084.8,0.747]
[1720604341368,3.24098,3085.5,3084.9,0.55]
[1720604341574,2.3381,3086.2,3085.0,0.06481813]
[1720604341880,1.023,3086.0,3085.1,7.18475652]
[1720604342045,1.023,3086.0,3085.2,1.25171066]
[1720604342243,1.023,3086.0,3085.3,0.55]
[1720604342457,1.023,3086.0,3085.4,0.06480539]
[1720604342639,1.023,3086.0,3085.5,0.55]
[1720604343232,1.023,3085.6,3085.3,0.6148057]
[1720604343433,1.023,3085.6,3085.3,0.55]
[1720604344372,1.023,3085.6,3085.2,0.55]
[1720604344562,3.24059,3085.9,3085.2,0.55]
[1720604344759,3.24059,3085.9,3085.2,0.867118]
[1720604347165,3.24088,3085.6,3085.0,3.24]
[1720604347348,3.24088,3085.6,3085.1,0.55]
[1720604350079,3.24067,3085.8,3085.1,0.55]
[1720604350277,3.24049,3086.0,3085.1,0.55]
[1720604350278,3.24051,3086.0,3085.2,0.44381599]
[1720604350480,3.24061,3085.9,3085.3,0.55]
[1720604354703,3.24028,3086.2,3085.4,2.468]
[1720604354855,3.0,3086.1,3085.5,0.92308768]
[1720604355487,4.72838177,3086.6,3085.5,0.92308768]
[1720604355666,4.72838177,3086.6,3085.6,0.33910877]
[1720604355867,4.72838177,3086.6,3085.7,0.55]
[1720604356551,4.72838177,3086.6,3085.8,0.06479828]
[1720604356755,1.48852177,3086.6,3085.9,0.55]
[1720604356998,6.98680769,3087.2,3086.1,2.4855]
[1720604357162,6.47849,3087.2,3086.2,0.86981759]
[1720604357357,3.23929,3087.1,3086.3,0.06478823]
[1720604357562,0.647852,3087.0,3086.4,0.55]
[1720604357757,3.23929,3087.1,3086.4,0.55]
[1720604357981,3.23929,3087.1,3086.2,0.55]
[1720604358387,3.0,3087.0,3086.2,0.55]
[1720604360001,3.23923,3087.2,3086.3,0.06478833]
[1720604360159,3.0,3087.1,3086.4,0.55]
[1720604360355,3.0,3087.1,3086.5,0.06478835]
[1720604362989,3.0,3087.3,3086.6,0.55]
[1720604363303,3.0,3087.3,3086.7,0.06478377]
[1720604363665,3.0,3087.3,3086.8,0.55]
[1720604363872,3.0,3087.4,3086.8,0.61478064]
[1720604364073,3.0,3087.4,3086.8,0.90948753]
[1720604364292,3.0,3087.5,3086.8,0.90948753]
[1720604364490,3.0,3087.5,3086.8,0.55]
[1720604364717,3.0,3087.5,3086.7,0.55]
[1720604364718,8.69387,3087.5,3086.7,0.55]
[1720604364966,3.0,3087.5,3086.8,0.06477948]
[1720604365173,7.72719177,3087.7,3086.9,0.55]
[1720604365368,5.69359,3087.8,3086.9,0.55]
[1720604365369,5.69359,3087.8,3087.0,0.06477783]
[1720604365673,7.18211177,3087.8,3087.1,0.55]
[1720604365986,7.18211177,3087.8,3087.2,0.06477491]
[1720604365987,5.69359,3087.8,3087.2,0.06477491]
[1720604366185,2.455,3087.8,3087.2,0.06477491]
[1720604366372,2.455,3087.8,3087.3,0.55]
[1720604367424,5.69316,3088.2,3087.3,0.92146876]
[1720604368030,3.23797,3088.4,3087.5,3.24]
[1720604368312,3.23797,3088.4,3087.6,0.61476404]
[1720604368518,3.23797,3088.4,3087.7,0.3854764]
[1720604368719,3.23797,3088.4,3087.8,0.06476404]
[1720604369123,6.47598,3088.4,3087.8,0.06476404]
[1720604369291,3.0,3088.3,3087.8,0.06476404]
[1720604369691,6.23803,3088.3,3087.8,0.06476404]
[1720604370593,10.96465177,3088.3,3087.6,0.55]
[1720604370815,7.06386177,3088.1,3087.5,3.24]
[1720604371001,3.23834,3088.0,3087.5,3.24]
[1720604371323,3.23822,3088.2,3087.5,3.30476842]
[1720604371633,6.23826,3088.1,3087.6,1.621]
[1720604371931,3.23835,3088.0,3087.6,1.071]
[1720604374443,6.47678,3088.0,3087.6,1.071]
[1720604375821,1.48852177,3087.6,3087.4,7.47]
[1720604376049,1.48852177,3087.6,3087.0,14.58408742]
[1720604376050,1.48852177,3087.4,3086.8,7.47]
[1720604376256,3.23905,3087.4,3086.8,8.217]
[1720604376408,1.48852177,3087.6,3086.8,8.217]
[1720604376609,7.72735177,3087.6,3086.8,8.217]
[1720604376915,7.72735177,3087.6,3086.9,2.3805]
[1720604377279,3.23891,3087.5,3087.0,1.05975]
[1720604378617,6.47787,3087.5,3087.0,1.05975]
[1720604378818,3.0,3087.6,3087.0,1.05975]
[1720604379019,3.0,3087.6,3087.1,0.894025]
[1720604380014,6.23877,3087.6,3087.1,0.894025]
[1720604381956,3.23888,3087.5,3087.1,0.894025]
[1720604383022,3.0,3087.6,3087.1,0.894025]
[1720604383228,6.23882,3087.6,3087.1,0.894025]
[1720604384156,6.23882,3087.6,3087.2,0.1953775]
[1720604385831,2.30684196,3089.3,3087.2,0.1953775]
[1720604385832,3.23825,3088.1,3087.4,2.3296]
[1720604386073,3.23825,3088.1,3087.5,0.61476545]
[1720604386640,3.23802,3088.3,3087.5,0.61476545]
[1720604386845,3.23819,3088.2,3087.6,0.29443655]
[1720604387026,3.23819,3088.2,3087.7,0.55]
[1720604387426,3.0,3088.1,3087.7,0.55]
[1720604388519,3.0,3088.1,3087.4,2.3296]
[1720604388733,3.2385,3087.9,3087.4,0.99949775]
[1720604389020,3.2385,3087.9,3087.5,0.55]
[1720604391927,3.23855,3087.8,3087.5,0.55]
[1720604399240,3.23842,3088.0,3087.5,0.55]
[1720604399442,3.23842,3088.0,3087.5,1.45194978]
[1720604400038,3.23853,3087.9,3087.5,1.45194978]
[1720604403455,3.23855,3087.8,3087.5,0.55]
[1720604403755,3.23855,3087.8,3087.4,0.55]
[1720604404167,3.23853,3087.9,3087.4,0.55]
[1720604404369,3.23853,3087.9,3087.5,0.65727745]
[1720604407300,6.47706,3087.9,3087.5,0.65727745]
[1720604407690,3.23853,3087.9,3087.5,0.65727745]
[1720604409103,3.23893,3087.5,3087.3,7.47]
[1720604409311,3.23893,3087.5,3087.2,0.1953775]
[1720604409466,3.23893,3087.5,3086.8,9.7772]
[1720604409672,3.23893,3087.5,3086.9,1.12687398]
[1720604409952,3.23893,3087.5,3086.8,9.7772]
[1720604410381,3.23847,3087.9,3086.9,0.06477795]
[1720604410601,3.23847,3087.9,3087.0,4.06533448]
[1720604410914,3.23847,3087.9,3087.0,3.00326869]
[1720604411266,3.23818,3088.2,3087.1,2.4459]
[1720604411473,3.0,3088.1,3087.3,2.4459]
[1720604411686,3.0,3088.1,3087.4,0.61476529]
[1720604411901,6.23824,3088.1,3087.4,0.61476529]
[1720604412219,6.23824,3088.1,3087.5,0.30606653]
[1720604412371,6.23824,3088.1,3087.6,0.55]
[1720604412574,3.0,3088.1,3087.6,0.55]
[1720604415830,5.65148,3088.4,3087.6,0.55]
[1720604416005,3.0,3088.3,3087.6,0.55]
[1720604418650,3.0,3088.3,3087.7,2.44896259]
[1720604418803,3.23774,3088.6,3087.8,0.84989626]
[1720604419003,3.23774,3088.6,3087.9,0.06475827]
[1720604419198,3.23774,3088.6,3088.0,0.55]
[1720604419432,3.23774,3088.6,3088.1,0.06475804]
[1720604420304,3.0,3088.9,3088.1,0.06475804]
[1720604420550,6.23747,3088.9,3088.2,2.9041]
[1720604420839,6.23747,3088.9,3088.3,0.36163715]
[1720604420840,1.021,3088.6,3088.3,0.36163715]
[1720604421057,1.021,3088.6,3088.4,0.55]
[1720604422552,6.23733,3089.0,3088.4,0.55]
[1720604422756,7.33362818,3089.0,3088.4,0.55]
[1720604422958,7.33362818,3089.0,3088.3,0.55]
[1720604423156,6.23733,3089.0,3088.3,0.55]
[1720604424537,3.0,3089.0,3088.3,0.61474911]
[1720604424732,3.0,3089.1,3088.3,0.61474911]
[1720604424922,3.0,3089.1,3088.4,0.29688491]
[1720604425123,3.0,3089.1,3088.5,0.55]
[1720604425356,0.50789285,3089.7,3088.6,2.4253]
[1720604425357,1.48852177,3089.5,3088.6,2.4253]
[1720604425559,1.48852177,3089.5,3088.7,0.61474084]
[1720604425560,3.23689,3089.4,3088.7,0.61474084]
[1720604425723,1.48852177,3089.5,3088.7,0.55]
[1720604425933,2.03380294,3090.2,3088.8,2.4888]
[1720604425934,1.48852177,3089.9,3088.8,2.4888]
[1720604426139,4.72445177,3090.3,3089.0,2.4888]
[1720604426340,1.48852177,3090.3,3089.2,2.96817533]
[1720604426567,3.23593,3090.3,3089.4,2.4888]
[1720604426772,3.23579,3090.5,3089.5,0.61472425]
[1720604427260,3.23584,3090.4,3089.5,0.61472425]
[1720604427645,4.72431177,3090.5,3089.5,0.61472425]
[1720604427859,4.72431177,3090.5,3089.5,2.05649067]
[1720604427860,4.07623808,3090.5,3089.5,2.05649067]
[1720604428167,0.44462899,3090.6,3089.5,2.05649067]
[1720604428464,0.44462899,3090.6,3089.5,5.29314033]
[1720604428624,0.44462899,3090.6,3089.6,3.23665]
[1720604428828,0.44462899,3090.6,3089.7,0.55]
[1720604429027,0.44462899,3090.6,3089.9,2.4971]
[1720604429340,0.44462899,3090.6,3090.0,0.55]
[1720604429729,1.48852177,3091.0,3090.1,0.06471398]
[1720604429928,4.7374,3091.2,3090.2,0.55]
[1720604429929,3.77592177,3091.2,3090.2,0.55]
[1720604430224,0.70108518,3091.1,3090.2,0.55]
[1720604430428,0.70108518,3091.1,3090.3,0.06470526]
[1720604430772,3.93617518,3091.1,3090.4,0.55]
[1720604430929,0.5424697,3091.0,3090.2,0.55]
[1720604431129,3.5424697,3091.0,3090.2,0.55]
[1720604432434,3.5424697,3091.0,3090.3,2.3973]
[1720604432643,3.5424697,3091.0,3090.4,0.55]
[1720604433837,3.5424697,3091.0,3090.5,0.0647055]
[1720604434074,3.70108518,3091.1,3090.4,0.55]
[1720604434245,3.0,3091.1,3090.4,0.55]
[1720604435733,6.2351,3091.1,3090.4,0.55]
[1720604435934,3.23561,3090.7,3090.1,7.47]
[1720604436135,3.23603,3090.2,3090.1,7.47]
[1720604436344,3.23603,3090.2,3089.6,25.29408742]
[1720604437766,6.23565,3090.6,3089.6,25.29408742]
[1720604437944,6.23565,3090.6,3089.7,4.99280874]
[1720604438147,3.4757,3090.8,3089.8,0.06471498]
[1720604438491,3.23524,3091.0,3089.9,2.4118]
[1720604438853,3.23524,3091.0,3089.9,5.64808]
[1720604439084,3.23524,3091.0,3090.0,0.55]
[1720604442739,3.2353,3090.9,3090.0,0.55]
[1720604443141,3.23573,3090.5,3089.6,16.10408742]
[1720604443381,3.23593,3090.3,3089.6,13.13408742]
[1720604443552,3.23622,3090.1,3089.6,13.13408742]
[1720604443774,3.23622,3090.1,3089.6,9.89408742]
[1720604443981,3.23597,3090.3,3089.6,9.89408742]
[1720604443982,3.23605,3090.2,3089.6,9.89408742]
[1720604444189,3.74085648,3090.2,3089.6,9.89408742]
[1720604445274,3.23615,3090.1,3089.6,9.89408742]
[1720604447265,3.23643,3089.9,3089.6,2.42408742]
[1720604447703,3.23643,3089.9,3089.3,19.63]
[1720604447894,3.23643,3089.9,3089.4,0.55]
[1720604448200,3.89015967,3089.9,3089.4,0.55]
[1720604450047,0.65372967,3089.9,3089.4,0.55]
[1720604450326,3.74084648,3090.2,3089.4,0.55]
[1720604450611,3.23604,3090.2,3089.4,0.61472457]
[1720604450995,3.23615,3090.1,3089.4,0.61472457]
[1720604451186,3.23626,3090.0,3089.4,0.55]
[1720604453908,3.23636,3089.9,3089.4,0.55]
[1720604458500,2.899119,3090.1,3089.4,0.55]
[1720604458830,8.72564,3089.4,3089.3,7.47]
[1720604459023,3.23725,3089.1,3088.7,7.47]
[1720604459175,3.884679,3089.1,3088.7,7.47]
[1720604459685,3.23729,3089.0,3088.7,7.47]
[1720604459890,3.237,3089.3,3088.7,7.47]
[1720604460111,3.23665,3089.7,3088.8,0.06474442]
[1720604460315,3.23665,3089.7,3088.9,2.947]
[1720604460497,3.23667,3089.6,3089.0,0.06473389]
[1720604460697,3.23667,3089.6,3089.1,0.55]
[1720604460917,3.2368,3089.5,3088.9,2.947]
[1720604461319,3.23665,3089.7,3088.9,4.0970091]
[1720604461842,3.23667,3089.6,3088.9,4.0970091]
[1720604462722,3.23678,3089.5,3088.9,4.0970091]
[1720604462912,3.23678,3089.5,3088.9,2.947]
[1720604463753,3.23678,3089.5,3088.9,0.55]
[1720604464118,3.23711,3089.2,3088.7,7.47]
[1720604465851,6.47428,3089.2,3088.7,7.47]
[1720604466214,3.884538,3089.2,3088.7,7.47]
[1720604466419,3.2374,3088.9,3088.7,7.47]
[1720604470165,3.2374,3088.9,3088.2,13.13408742]
[1720604470364,3.2374,3088.9,3088.3,0.55]
[1720604470962,3.23712,3089.2,3088.3,2.14495613]
[1720604471264,2.45,3089.4,3088.3,2.14495613]
[1720604471265,3.23692,3089.4,3088.3,2.14495613]
[1720604471467,1.48852177,3089.7,3088.4,2.4748]
[1720604471631,3.23693,3089.4,3088.5,1.07671269]
[1720604471967,4.72512177,3089.7,3088.5,1.01197561]
[1720604472167,3.2366,3089.7,3088.6,0.4134149]
[1720604472370,3.23671,3089.6,3088.7,0.55]
[1720604472545,3.23683,3089.5,3088.7,0.74106532]
[1720604473631,3.23708,3089.3,3088.7,0.74106532]
[1720604473835,3.23746,3088.9,3088.1,1.618]
[1720604474235,3.23759,3088.8,3088.2,16.10408742]
[1720604474934,3.23778,3088.6,3088.2,2.97]
[1720604475177,3.23791,3088.5,3088.2,2.97]
[1720604475376,3.23794,3088.4,3088.2,2.97]
[1720604475686,3.55399217,3088.6,3088.2,2.97]
[1720604475855,3.23784,3088.5,3088.2,2.97]
[1720604476545,3.23765,3088.7,3088.2,2.97]
[1720604476751,3.23788,3088.5,3088.2,2.97]
[1720604477079,3.23793,3088.4,3088.2,2.97]
[1720604478375,3.56819467,3088.4,3088.2,2.97]
[1720604478582,3.56819467,3088.4,3087.9,19.63]
[1720604478583,2.78026467,3088.4,3087.9,19.63]
[1720604478779,1.55323849,3088.3,3087.9,19.63]
[1720604478979,0.06471672,3088.2,3087.5,7.47]
[1720604479180,3.23854,3087.9,3087.5,7.47]
[1720604480579,3.23861,3087.8,3087.5,7.47]
[1720604481083,3.23854,3087.9,3087.5,7.47]
[1720604481399,3.23857,3087.8,3087.5,7.47]
[1720604482703,6.47721,3087.8,3087.5,7.47]
[1720604483948,3.23866,3087.7,3087.5,7.47]
[1720604484288,3.67146032,3088.3,3087.5,7.47]
[1720604484503,3.2383,3088.1,3087.5,8.217]
[1720604484674,3.2383,3088.1,3087.5,7.47]
[1720604485055,3.23847,3087.9,3087.2,19.63]
[1720604485266,3.23847,3087.9,3087.3,0.55]
[1720604485465,3.23839,3088.0,3087.3,0.55]
[1720604485695,3.23824,3088.1,3087.4,0.06477029]
[1720604485906,3.23807,3088.3,3087.5,0.55]
[1720604486118,2.45,3088.4,3087.6,0.06476687]
[1720604486279,6.23765,3088.7,3087.7,0.85385669]
[1720604486622,6.23773,3088.6,3087.7,0.85385669]
[1720604488401,1.48852177,3088.5,3087.7,0.55]
[1720604488595,3.23812,3088.3,3087.6,0.55]
[1720604488987,3.23813,3088.2,3087.6,0.55]
[1720604489371,3.23787,3088.5,3087.6,0.84738]
[1720604489572,3.23793,3088.4,3087.6,0.84738]
[1720604489773,3.23803,3088.3,3087.6,0.84738]
[1720604490184,3.2382,3088.2,3087.6,0.55]
[1720604490506,3.23857,3087.8,3087.2,9.8033]
[1720604491002,3.23857,3087.8,3087.2,2.3333]
[1720604491308,3.23857,3087.8,3087.2,2.56663]
[1720604492002,3.23857,3087.8,3087.3,0.55]
[1720604492799,3.23857,3087.8,3087.0,0.55]
[1720604495605,3.23869,3087.7,3087.0,0.55]
[1720604495805,3.23878,3087.6,3087.0,0.55]
[1720604500226,2.45,3088.1,3087.0,0.55]
[1720604500227,3.23846,3087.9,3087.0,0.55]
[1720604500926,3.23861,3087.8,3087.0,0.55]
[1720604501425,3.23866,3087.7,3087.0,0.55]
[1720604501593,3.23866,3087.7,3087.0,1.17869452]
[1720604503396,6.47699,3087.9,3087.0,1.17869452]
[1720604503597,3.23865,3087.8,3087.0,1.17869452]
[1720604504306,3.23866,3087.7,3087.0,0.55]
[1720604506338,3.23898,3087.4,3086.9,9.8754]
[1720604506539,3.23898,3087.4,3086.9,2.4054]
[1720604506838,3.23898,3087.4,3086.9,3.10774]
[1720604508140,3.23898,3087.4,3087.0,0.55]
[1720604508305,3.23857,3087.8,3087.0,0.55]
[1720604509644,3.23876,3087.6,3087.0,0.55]
[1720604512854,6.4776,3087.6,3087.0,0.55]
[1720604513781,2.397,3087.8,3086.8,1.618]
[1720604513782,1.48852177,3087.4,3086.8,1.618]
[1720604513980,1.48852177,3087.4,3086.6,9.89408742]
[1720604513981,3.2394,3087.0,3086.6,9.89408742]
[1720604515395,3.23918,3087.2,3086.6,9.89408742]
[1720604515623,3.23903,3087.4,3086.7,0.55]
[1720604515900,3.23903,3087.4,3086.7,1.53940874]
[1720604516204,3.23927,3087.2,3086.7,1.53940874]
[1720604520297,3.23927,3087.2,3086.7,0.55]
[1720604521500,3.2394,3087.0,3086.7,0.55]
[1720604521680,3.2397,3086.7,3086.6,9.89408742]
[1720604521879,3.2397,3086.7,3086.6,2.42408742]
[1720604522487,3.23941,3087.0,3086.6,2.42408742]
[1720604523489,3.2395,3086.9,3086.6,2.42408742]
[1720604523896,6.47907,3086.9,3086.6,2.42408742]
[1720604524222,3.2395,3086.9,3086.6,2.42408742]
[1720604526219,3.23942,3087.0,3086.6,2.42408742]
[1720604526800,3.23939,3087.0,3086.6,2.42408742]
[1720604527410,3.23951,3086.9,3086.6,2.42408742]
[1720604529046,3.23968,3086.8,3086.6,2.42408742]
[1720604529337,3.2397,3086.7,3086.6,2.42408742]
[1720604530825,3.4017,3086.7,3086.6,2.42408742]
[1720604531688,3.23981,3086.6,3086.0,7.47]
[1720604531891,3.23981,3086.6,3086.1,0.55]
[1720604532092,3.23997,3086.5,3086.1,0.55]
[1720604532328,3.23997,3086.5,3086.0,7.47]
[1720604533293,3.23997,3086.5,3086.0,8.45304]
[1720604535531,3.23997,3086.5,3086.0,0.98304]
[1720604535708,3.23997,3086.5,3085.8,2.3604]
[1720604535908,3.23997,3086.5,3085.9,0.55]
[1720604538518,4.89024177,3086.7,3085.9,0.55]
[1720604538724,1.022,3086.4,3085.9,0.55]
[1720604540149,0.162,3086.7,3086.0,0.06480116]
[1720604540436,1.184,3086.7,3086.1,0.55]
[1720604540653,1.022,3086.6,3086.1,0.55]
[1720604541929,0.162,3086.7,3086.2,5.68250423]
[1720604542115,0.162,3086.7,3086.3,1.17325042]
[1720604542315,0.162,3086.7,3086.4,0.06478858]
[1720604542541,0.162,3086.7,3086.5,0.55]
[1720604542743,0.162,3086.7,3086.6,0.06478645]
[1720604543035,0.162,3086.7,3086.6,2.94348645]
[1720604543340,0.162,3086.7,3086.6,3.49704464]
[1720604547460,0.162,3086.7,3086.6,1.16834464]
[1720604547762,0.162,3086.7,3086.6,0.55]
[1720604547959,0.162,3086.7,3086.4,0.55]
[1720604550865,0.162,3086.7,3086.5,0.06478376]